fUSD/lending_fUSD_20240426
["ID","MTS","AMOUNT","RATE_DAILY","PERIOD"]
[323627278,1714144252433,-530.87,0.00011822,2]
[323627279,1714144252442,-1511.47,0.00011822,2]
[323627280,1714144252452,-1781.76,0.00011822,2]
[323627281,1714144252462,-535.46,0.00011822,2]
[323627282,1714144252472,-929.19,0.00011822,2]
[323627283,1714144252483,-2050.24,0.00011822,2]
[323627284,1714144252492,-1427.69,0.00011822,2]
[323627285,1714144252503,-1581.09,0.00011822,2]
[323627286,1714144252513,-500.0,0.00011822,2]
[323627287,1714144252523,-500.0,0.00011822,2]
[323627288,1714144252532,-8111.76,0.00011822,2]
[323627289,1714144252542,-881.08,0.00011822,2]
[323627290,1714144252552,-3242.05,0.00011822,2]
[323627291,1714144252563,-2025.69,0.00011822,2]
[323627292,1714144252574,-500.0,0.00011822,2]
[323627293,1714144252584,-4761.42,0.00011822,2]
[323627294,1714144252750,-759.13,0.00011822,2]
[323627295,1714144252760,-958.34,0.00011822,2]
[323627296,1714144252770,-1113.72,0.00011822,2]
[323627297,1714144252779,-2788.8,0.00011822,2]
[323627298,1714144252788,-1025.56,0.00011822,2]
[323627299,1714144252798,-500.0,0.00011822,2]
[323627300,1714144252807,-500.0,0.00011822,2]
[323627301,1714144252816,-500.0,0.00011822,2]
[323627302,1714144252826,-907.6,0.00011822,2]
[323627303,1714144252835,-1596.65,0.00011822,2]
[323627304,1714144252844,-592.32,0.00011822,2]
[323627305,1714144252853,-500.0,0.00011822,2]
[323627306,1714144252862,-1103.38,0.00011822,2]
[323627307,1714144252873,-1620.05,0.00011822,2]
[323627308,1714144252882,-500.0,0.00011822,2]
[323627309,1714144252893,-500.0,0.00011822,2]
[323627310,1714144252902,-500.0,0.00011822,2]
[323627311,1714144252911,-500.0,0.00011822,2]
[323627312,1714144252922,-500.0,0.00011822,2]
[323627313,1714144252931,-900.65,0.00011822,2]
[323627314,1714144252940,-2592.79,0.00011822,2]
[323627315,1714144252950,-6571.64,0.00011822,2]
[323627316,1714144252959,-521.28,0.00011822,2]
[323627317,1714144252968,-582.1,0.00011822,2]
[323627318,1714144252978,-516.88,0.00011822,2]
[323627319,1714144252987,-240.0,0.00011838,2]
[323627320,1714144252997,-500.0,0.00011839,2]
[323627321,1714144253006,-500.0,0.00011839,2]
[323627322,1714144253016,-500.0,0.00011839,2]
[323627323,1714144253025,-500.0,0.00011839,2]
[323627324,1714144253035,-662.31,0.00011839,2]
[323627325,1714144253045,-500.0,0.00011839,2]
[323627326,1714144253054,-500.0,0.00011839,2]
[323627327,1714144253064,-500.0,0.00011839,2]
[323627328,1714144253073,-500.0,0.00011839,2]
[323627329,1714144253082,-500.0,0.00011839,2]
[323627330,1714144253092,-500.0,0.00011839,2]
[323627331,1714144253101,-1027.87,0.00011839,2]
[323627332,1714144253111,-500.0,0.00011839,2]
[323627333,1714144253120,-500.0,0.00011839,2]
[323627334,1714144253129,-537.7,0.00011839,2]
[323627335,1714144253139,-1329.4,0.00011839,2]
[323627336,1714144253149,-3382.19,0.00011839,2]
[323627337,1714144253159,-500.0,0.00011839,2]
[323627338,1714144253168,-575.5,0.00011839,2]
[323627339,1714144253177,-3841.15,0.00011839,2]
[323627340,1714144253187,-500.0,0.00011839,2]
[323627341,1714144253196,-500.0,0.00011839,2]
[323627342,1714144253206,-500.0,0.00011839,2]
[323627343,1714144253215,-500.0,0.00011839,2]
[323627344,1714144253225,-399.57601105,0.00011839,2]
[323627345,1714144253234,-2727.56,0.00011839,2]
[323627346,1714144253244,-500.0,0.00011839,2]
[323627347,1714144253253,-500.0,0.00011839,2]
[323627348,1714144253263,-500.0,0.00011839,2]
[323627349,1714144253273,-414.43265063,0.00011839,2]
[323627350,1714144253293,-87.897635,0.00011839,2]
[323627351,1714144253302,-537.54,0.00011839,2]
[323627352,1714144253312,-500.0,0.00011839,2]
[323627353,1714144253322,-500.0,0.00011839,2]
[323627354,1714144253332,-500.0,0.00011839,2]
[323627355,1714144253341,-500.0,0.00011839,2]
[323627356,1714144253351,-500.0,0.00011839,2]
[323627357,1714144253360,-264.56237,0.00011839,2]
[323627358,1714144253921,-500.0,0.00011546,2]
[323627359,1714144253931,-500.0,0.00011648,2]
[323627360,1714144253941,-500.0,0.0001182,2]
[323627361,1714144253951,-114.01832205,0.00011839,2]
[323627362,1714144253960,-500.0,0.00011839,2]
[323627363,1714144253969,-500.0,0.00011839,2]
[323627364,1714144253978,-500.0,0.00011839,2]
[323627365,1714144253987,-503.64476579,0.00011839,2]
[323627366,1714144253996,-500.0,0.00011839,2]
[323627367,1714144254006,-725.89046193,0.00011839,2]
[323627368,1714144254017,-59.23953807,0.00011839,2]
[323627369,1714144254026,-500.0,0.00011839,2]
[323627370,1714144254035,-266.99487093,0.00011839,2]
[323627371,1714144254078,-233.00512907,0.00011839,2]
[323627372,1714144254087,-79.42487095,0.00011839,2]
[323627373,1714144254157,-478.74512905,0.00011839,2]
[323627374,1714144254166,-1116.4,0.00011839,2]
[323627375,1714144254176,-158.49147623,0.00011839,2]
[323627376,1714144254185,-500.0,0.00011839,2]
[323627377,1714144254194,-500.0,0.00011839,2]
[323627378,1714144254204,-500.0,0.00011839,2]
[323627379,1714144254213,-151.61047323,0.00011839,2]
[323627380,1714144254222,-500.0,0.00011839,2]
[323627381,1714144254231,-500.0,0.00011839,2]
[323627382,1714144254241,-579.13,0.00011839,2]
[323627383,1714144254250,-500.0,0.00011839,2]
[323627384,1714144254259,-957.84,0.00011839,2]
[323627385,1714144254268,-500.0,0.00011839,2]
[323627386,1714144254277,-500.0,0.00011839,2]
[323627387,1714144254287,-664.1,0.00011839,2]
[323627388,1714144254296,-500.0,0.00011839,2]
[323627389,1714144254305,-500.0,0.00011839,2]
[323627390,1714144254315,-510.27933442,0.00011839,2]
[323627391,1714144254324,-500.0,0.00011839,2]
[323627392,1714144254333,-500.0,0.00011839,2]
[323627393,1714144254342,-882.25,0.00011839,2]
[323627394,1714144254352,-500.0,0.00011839,2]
[323627395,1714144254361,-500.0,0.00011839,2]
[323627396,1714144254370,-500.0,0.00011839,2]
[323627397,1714144254379,-500.0,0.00011839,2]
[323627398,1714144254388,-764.06,0.00011839,2]
[323627399,1714144254400,-500.0,0.00011839,2]
[323627400,1714144254409,-500.0,0.00011839,2]
[323627401,1714144254418,-500.0,0.00011839,2]
[323627402,1714144254428,-150.0,0.00011839,2]
[323627403,1714144254436,-500.0,0.00011839,2]
[323627404,1714144254446,-635.25647897,0.00011839,2]
[323627405,1714144254455,-500.0,0.00011839,2]
[323627406,1714144254465,-500.0,0.00011839,2]
[323627407,1714144254474,-758.65,0.00011839,2]
[323627408,1714144254483,-500.0,0.00011839,2]
[323627409,1714144254492,-500.0,0.00011839,2]
[323627410,1714144254502,-500.0,0.00011839,2]
[323627411,1714144254511,-160.54951326,0.00011839,2]
[323627412,1714144254521,-500.0,0.00011839,2]
[323627413,1714144254531,-500.0,0.00011839,2]
[323627414,1714144254541,-332.23,0.00011839,2]
[323627415,1714144254550,-954.46,0.00011839,2]
[323627416,1714144254560,-500.0,0.00011839,2]
[323627417,1714144254570,-680.81,0.00011839,2]
[323627418,1714144254579,-500.0,0.00011839,2]
[323627419,1714144254589,-500.0,0.00011839,2]
[323627420,1714144254602,-500.0,0.00011839,2]
[323627421,1714144254783,-222.53,0.00011839,2]
[323627422,1714144254792,-500.0,0.00011839,2]
[323627423,1714144254802,-500.0,0.00011839,2]
[323627424,1714144254812,-500.0,0.00011839,2]
[323627425,1714144254821,-500.0,0.00011839,2]
[323627426,1714144254831,-500.0,0.00011839,2]
[323627427,1714144254841,-500.0,0.00011839,2]
[323627428,1714144254850,-500.0,0.00011839,2]
[323627429,1714144254859,-500.0,0.00011839,2]
[323627430,1714144254869,-500.0,0.00011839,2]
[323627431,1714144254878,-500.0,0.00011839,2]
[323627432,1714144254888,-500.0,0.00011839,2]
[323627433,1714144254900,-739.45,0.00011839,2]
[323627434,1714144254910,-500.0,0.00011839,2]
[323627435,1714144254919,-500.0,0.00011839,2]
[323627436,1714144254929,-500.0,0.00011839,2]
[323627437,1714144254938,-500.0,0.00011839,2]
[323627438,1714144254947,-500.0,0.00011839,2]
[323627439,1714144254956,-529.62,0.00011839,2]
[323627440,1714144254965,-500.0,0.00011839,2]
[323627441,1714144254974,-500.0,0.00011839,2]
[323627442,1714144254984,-500.0,0.00011839,2]
[323627443,1714144254994,-500.0,0.00011839,2]
[323627444,1714144255004,-508.26,0.00011839,2]
[323627445,1714144255013,-597.21,0.00011839,2]
[323627446,1714144255022,-1069.36,0.00011839,2]
[323627447,1714144255031,-500.0,0.00011839,2]
[323627448,1714144255041,-502.98946788,0.00011839,2]
[323627449,1714144255050,-500.0,0.00011839,2]
[323627450,1714144255059,-500.0,0.00011839,2]
[323627451,1714144255068,-500.0,0.00011839,2]
[323627452,1714144255077,-500.0,0.00011839,2]
[323627453,1714144255086,-500.0,0.00011839,2]
[323627454,1714144255096,-500.0,0.00011839,2]
[323627455,1714144255105,-500.0,0.00011839,2]
[323627456,1714144255115,-500.0,0.00011839,2]
[323627457,1714144255124,-267.37,0.00011839,2]
[323627458,1714144255134,-500.0,0.00011839,2]
[323627459,1714144255153,-500.0,0.00011839,2]
[323627460,1714144255162,-500.0,0.00011839,2]
[323627461,1714144255172,-500.0,0.00011839,2]
[323627462,1714144255182,-500.0,0.00011839,2]
[323627463,1714144255192,-606.85,0.00011839,2]
[323627464,1714144255201,-395.81,0.00011839,2]
[323627465,1714144255210,-500.0,0.00011839,2]
[323627466,1714144255219,-500.0,0.00011839,2]
[323627467,1714144255230,-500.0,0.00011839,2]
[323627468,1714144255239,-743.34,0.00011839,2]
[323627469,1714144255248,-500.0,0.00011839,2]
[323627470,1714144255258,-500.0,0.00011839,2]
[323627471,1714144255267,-500.0,0.00011839,2]
[323627472,1714144255277,-500.0,0.00011839,2]
[323627473,1714144255286,-506.27521961,0.00011839,2]
[323627474,1714144255296,-630.39,0.00011839,2]
[323627475,1714144255305,-920.66,0.00011839,2]
[323627476,1714144255314,-500.0,0.00011839,2]
[323627477,1714144255323,-1959.75,0.00011839,2]
[323627478,1714144255333,-500.0,0.00011839,2]
[323627479,1714144255342,-500.0,0.00011839,2]
[323627480,1714144255352,-500.0,0.00011839,2]
[323627481,1714144255361,-2715.22,0.00011839,2]
[323627482,1714144255371,-500.0,0.00011839,2]
[323627483,1714144255381,-500.0,0.00011839,2]
[323627484,1714144255390,-1289.14,0.00011839,2]
[323627485,1714144255402,-500.0,0.00011839,2]
[323627486,1714144255411,-500.0,0.00011839,2]
[323627487,1714144255421,-500.0,0.00011839,2]
[323627488,1714144255432,-1517.61,0.00011839,2]
[323627489,1714144255441,-500.0,0.00011839,2]
[323627490,1714144255452,-1544.68,0.00011839,2]
[323627491,1714144255461,-500.0,0.00011839,2]
[323627492,1714144255471,-2773.44,0.00011839,2]
[323627493,1714144255480,-1704.29,0.00011839,2]
[323627494,1714144255489,-500.57142867,0.00011839,2]
[323627495,1714144255499,-781.06,0.00011839,2]
[323627496,1714144255509,-811.4,0.00011839,2]
[323627497,1714144255519,-3173.09,0.00011839,2]
[323627498,1714144255530,-500.0,0.00011839,2]
[323627499,1714144255540,-500.0,0.00011839,2]
[323627500,1714144255550,-500.0,0.00011839,2]
[323627501,1714144255561,-4359.8,0.00011839,2]
[323627502,1714144255571,-500.0,0.00011839,2]
[323627503,1714144255581,-500.0,0.00011839,2]
[323627504,1714144255591,-903.79,0.00011839,2]
[323627505,1714144255605,-1331.69,0.00011839,2]
[323627506,1714144255615,-500.0,0.00011839,2]
[323627507,1714144255624,-500.0,0.00011839,2]
[323627508,1714144255634,-500.0,0.00011839,2]
[323627509,1714144255645,-500.0,0.00011839,2]
[323627510,1714144255655,-500.0,0.00011839,2]
[323627511,1714144255667,-2216.77,0.00011839,2]
[323627512,1714144255679,-733.22,0.00011839,2]
[323627513,1714144255689,-12108.01,0.00011839,2]
[323627514,1714144255699,-500.0,0.00011839,2]
[323627515,1714144255709,-500.0,0.00011839,2]
[323627516,1714144255719,-500.0,0.00011839,2]
[323627517,1714144255729,-672.43,0.00011839,2]
[323627518,1714144255739,-500.0,0.00011839,2]
[323627519,1714144255749,-500.0,0.00011839,2]
[323627520,1714144255759,-500.0,0.00011839,2]
[323627521,1714144255768,-500.0,0.00011839,2]
[323627522,1714144255778,-532.22,0.00011854,2]
[323627523,1714144255787,-155.0,0.00011877,2]
[323627524,1714144255796,-243.18034588,0.00011877,2]
[323627525,1714144255806,-1063.75484134,0.00011877,2]
[323627526,1714144255815,-181.8774997,0.00011877,2]
[323627527,1714144255826,-16302.06677406,0.00011877,2]
[323627528,1714144255835,-500.0,0.00011878,2]
[323627529,1714144255845,-28626.1921856,0.000119,2]
[323627530,1714144255854,-155.25626697,0.000119,2]
[323627531,1714144255864,-5161.0243269,0.000119,2]
[323627532,1714144255874,-754.15257926,0.0001192,2]
[323627533,1714144255883,-500.0,0.00011922,2]
[323627534,1714144255895,-500.0,0.00011922,2]
[323627535,1714144255905,-500.0,0.00011922,2]
[323627536,1714144255915,-500.0,0.00011922,2]
[323627537,1714144255925,-535.58,0.00011922,2]
[323627538,1714144255934,-500.0,0.00011922,2]
[323627539,1714144255944,-500.0,0.00011922,2]
[323627540,1714144255954,-500.0,0.00011922,2]
[323627541,1714144255963,-500.0,0.00011922,2]
[323627542,1714144255972,-500.0,0.00011922,2]
[323627543,1714144255982,-500.0,0.00011922,2]
[323627544,1714144255991,-596.07,0.00011922,2]
[323627545,1714144256001,-500.0,0.00011922,2]
[323627546,1714144256010,-756.67,0.00011922,2]
[323627547,1714144256019,-514.83,0.00011922,2]
[323627548,1714144256028,-500.0,0.00011922,2]
[323627549,1714144256038,-500.0,0.00011922,2]
[323627550,1714144256047,-500.0,0.00011922,2]
[323627551,1714144256056,-500.0,0.00011922,2]
[323627552,1714144256065,-500.0,0.00011922,2]
[323627553,1714144256075,-166.62686169,0.00011922,2]
[323627554,1714144256087,-500.0,0.00011922,2]
[323627555,1714144256121,-648.48,0.00011922,2]
[323627556,1714144256130,-500.0,0.00011922,2]
[323627557,1714144256141,-2642.42,0.00011922,2]
[323627558,1714144256151,-500.0,0.00011922,2]
[323627559,1714144256160,-500.0,0.00011922,2]
[323627560,1714144256169,-775.58,0.00011922,2]
[323627561,1714144256178,-500.0,0.00011922,2]
[323627562,1714144256187,-500.0,0.00011922,2]
[323627563,1714144256196,-624.2,0.00011922,2]
[323627564,1714144256206,-500.0,0.00011922,2]
[323627565,1714144256215,-500.0,0.00011922,2]
[323627566,1714144256224,-500.0,0.00011922,2]
[323627567,1714144256233,-500.0,0.00011922,2]
[323627568,1714144256242,-1312.69,0.00011922,2]
[323627569,1714144256252,-500.0,0.00011922,2]
[323627570,1714144256261,-500.0,0.00011922,2]
[323627571,1714144256270,-500.0,0.00011922,2]
[323627572,1714144256279,-500.0,0.00011922,2]
[323627573,1714144256289,-500.0,0.00011922,2]
[323627574,1714144256298,-500.0,0.00011922,2]
[323627575,1714144256307,-500.0,0.00011922,2]
[323627576,1714144256316,-783.4,0.00011922,2]
[323627577,1714144256326,-500.0,0.00011922,2]
[323627578,1714144256335,-500.0,0.00011922,2]
[323627579,1714144256345,-500.0,0.00011922,2]
[323627580,1714144256354,-500.0,0.00011922,2]
[323627581,1714144256363,-500.0,0.00011922,2]
[323627582,1714144256372,-500.0,0.00011922,2]
[323627583,1714144256382,-500.0,0.00011922,2]
[323627584,1714144256391,-304.0301095,0.00011922,2]
[323627585,1714144256401,-500.0,0.00011922,2]
[323627586,1714144256410,-500.0,0.00011922,2]
[323627587,1714144256419,-500.0,0.00011922,2]
[323627588,1714144256428,-500.0,0.00011922,2]
[323627589,1714144256438,-500.0,0.00011922,2]
[323627590,1714144256448,-500.0,0.00011922,2]
[323627591,1714144256457,-500.0,0.00011922,2]
[323627592,1714144256467,-500.0,0.00011922,2]
[323627593,1714144256477,-500.0,0.00011922,2]
[323627594,1714144256486,-500.0,0.00011922,2]
[323627595,1714144256495,-500.0,0.00011922,2]
[323627596,1714144256505,-500.0,0.00011922,2]
[323627597,1714144256514,-201.98869719,0.00011922,2]
[323627598,1714144256524,-500.0,0.00011922,2]
[323627599,1714144256535,-500.0,0.00011922,2]
[323627600,1714144256544,-698.77,0.00011922,2]
[323627601,1714144256555,-500.0,0.00011922,2]
[323627602,1714144256564,-500.0,0.00011922,2]
[323627603,1714144256574,-500.0,0.00011922,2]
[323627604,1714144256583,-500.0,0.00011922,2]
[323627605,1714144256593,-500.0,0.00011922,2]
[323627606,1714144256606,-500.0,0.00011922,2]
[323627607,1714144256616,-500.0,0.00011922,2]
[323627608,1714144256626,-500.0,0.00011922,2]
[323627609,1714144256637,-500.0,0.00011922,2]
[323627610,1714144256647,-500.0,0.00011922,2]
[323627611,1714144256655,-500.0,0.00011922,2]
[323627612,1714144256665,-500.0,0.00011922,2]
[323627613,1714144256676,-500.0,0.00011922,2]
[323627614,1714144256685,-500.0,0.00011922,2]
[323627615,1714144256695,-500.0,0.00011922,2]
[323627616,1714144256705,-500.0,0.00011922,2]
[323627617,1714144256715,-735.81,0.00011922,2]
[323627618,1714144256724,-816.18,0.00011922,2]
[323627619,1714144256733,-500.0,0.00011922,2]
[323627620,1714144256742,-883.08,0.00011922,2]
[323627621,1714144256752,-500.0,0.00011922,2]
[323627622,1714144256761,-500.0,0.00011922,2]
[323627623,1714144256771,-500.0,0.00011922,2]
[323627624,1714144256781,-500.0,0.00011922,2]
[323627625,1714144256792,-500.0,0.00011922,2]
[323627626,1714144256802,-500.0,0.00011922,2]
[323627627,1714144256811,-500.0,0.00011922,2]
[323627628,1714144256821,-500.0,0.00011922,2]
[323627629,1714144256831,-500.0,0.00011922,2]
[323627630,1714144256840,-500.0,0.00011922,2]
[323627631,1714144256850,-500.0,0.00011922,2]
[323627632,1714144256860,-656.76,0.00011922,2]
[323627633,1714144256870,-500.0,0.00011922,2]
[323627634,1714144256879,-500.0,0.00011922,2]
[323627635,1714144256889,-500.0,0.00011922,2]
[323627636,1714144256899,-505.15,0.00011922,2]
[323627637,1714144256909,-500.0,0.00011922,2]
[323627638,1714144256918,-500.0,0.00011922,2]
[323627639,1714144257071,-500.0,0.00011922,2]
[323627640,1714144257082,-500.0,0.00011922,2]
[323627641,1714144257093,-502.93210643,0.00011922,2]
[323627642,1714144257104,-500.0,0.00011922,2]
[323627643,1714144257115,-626.43,0.00011922,2]
[323627644,1714144257126,-500.0,0.00011922,2]
[323627645,1714144257136,-500.0,0.00011922,2]
[323627646,1714144257148,-500.0,0.00011922,2]
[323627647,1714144257158,-500.0,0.00011922,2]
[323627648,1714144257168,-500.0,0.00011922,2]
[323627649,1714144257179,-1504.28,0.00011922,2]
[323627650,1714144257189,-500.0,0.00011922,2]
[323627651,1714144257199,-500.0,0.00011922,2]
[323627652,1714144257210,-500.0,0.00011922,2]
[323627653,1714144257220,-700.46,0.00011922,2]
[323627654,1714144257231,-448.47409536,0.00011922,2]
[323627655,1714144257242,-505.79,0.00011922,2]
[323627656,1714144257252,-500.0,0.00011922,2]
[323627657,1714144257262,-500.0,0.00011922,2]
[323627658,1714144257272,-500.0,0.00011922,2]
[323627659,1714144257282,-500.0,0.00011922,2]
[323627660,1714144257291,-500.0,0.00011922,2]
[323627661,1714144257302,-500.0,0.00011922,2]
[323627662,1714144257312,-500.0,0.00011922,2]
[323627663,1714144257321,-500.0,0.00011922,2]
[323627664,1714144257332,-500.0,0.00011922,2]
[323627665,1714144257342,-1660.69,0.00011922,2]
[323627666,1714144257353,-500.0,0.00011922,2]
[323627667,1714144257363,-650.53,0.00011922,2]
[323627668,1714144257372,-2081.9,0.00011922,2]
[323627669,1714144257382,-371.75,0.00011922,2]
[323627670,1714144257392,-500.0,0.00011922,2]
[323627671,1714144257404,-500.0,0.00011922,2]
[323627672,1714144257413,-591.02,0.00011922,2]
[323627673,1714144257423,-657.82,0.00011922,2]
[323627674,1714144257432,-500.0,0.00011922,2]
[323627675,1714144257442,-500.0,0.00011922,2]
[323627676,1714144257452,-500.0,0.00011922,2]
[323627677,1714144257461,-500.0,0.00011922,2]
[323627678,1714144257471,-500.0,0.00011922,2]
[323627679,1714144257480,-505.05,0.00011922,2]
[323627680,1714144257490,-500.0,0.00011922,2]
[323627681,1714144257499,-500.0,0.00011922,2]
[323627682,1714144257509,-500.0,0.00011922,2]
[323627683,1714144257518,-500.0,0.00011922,2]
[323627684,1714144257527,-500.0,0.00011922,2]
[323627685,1714144257537,-562.21,0.00011922,2]
[323627686,1714144257547,-500.0,0.00011922,2]
[323627687,1714144257556,-969.05,0.00011922,2]
[323627688,1714144257565,-500.0,0.00011922,2]
[323627689,1714144257574,-500.0,0.00011922,2]
[323627690,1714144257584,-500.0,0.00011922,2]
[323627691,1714144257594,-500.0,0.00011922,2]
[323627692,1714144257607,-2831.12,0.00011922,2]
[323627693,1714144257616,-844.43,0.00011922,2]
[323627694,1714144257625,-500.0,0.00011922,2]
[323627695,1714144257635,-500.0,0.00011922,2]
[323627696,1714144257646,-500.0,0.00011922,2]
[323627697,1714144257655,-500.0,0.00011922,2]
[323627698,1714144257664,-500.0,0.00011922,2]
[323627699,1714144257674,-500.0,0.00011922,2]
[323627700,1714144257684,-500.0,0.00011922,2]
[323627701,1714144257694,-500.0,0.00011922,2]
[323627702,1714144257703,-500.0,0.00011922,2]
[323627703,1714144257713,-500.0,0.00011922,2]
[323627704,1714144257723,-932.13,0.00011922,2]
[323627705,1714144257732,-500.0,0.00011922,2]
[323627706,1714144257741,-500.0,0.00011922,2]
[323627707,1714144257751,-500.0,0.00011922,2]
[323627708,1714144257762,-500.0,0.00011922,2]
[323627709,1714144257771,-500.0,0.00011922,2]
[323627710,1714144257781,-520.61,0.00011922,2]
[323627711,1714144257791,-500.0,0.00011922,2]
[323627712,1714144257800,-500.0,0.00011922,2]
[323627713,1714144257810,-500.0,0.00011922,2]
[323627714,1714144257820,-322.5222558,0.00011922,2]
[323627715,1714144257830,-500.0,0.00011922,2]
[323627716,1714144257840,-500.0,0.00011922,2]
[323627717,1714144257851,-942.72,0.00011922,2]
[323627718,1714144257861,-500.0,0.00011922,2]
[323627719,1714144257871,-500.0,0.00011922,2]
[323627720,1714144257881,-500.0,0.00011922,2]
[323627721,1714144257891,-500.0,0.00011922,2]
[323627722,1714144257903,-969.99,0.00011922,2]
[323627723,1714144257913,-749.77,0.00011922,2]
[323627724,1714144257923,-500.0,0.00011922,2]
[323627725,1714144257933,-500.0,0.00011922,2]
[323627726,1714144257943,-500.0,0.00011922,2]
[323627727,1714144257952,-500.0,0.00011922,2]
[323627728,1714144257961,-299.81,0.00011922,2]
[323627729,1714144257971,-500.0,0.00011922,2]
[323627730,1714144257981,-500.0,0.00011922,2]
[323627731,1714144257992,-703.62,0.00011922,2]
[323627732,1714144258002,-1102.31,0.00011922,2]
[323627733,1714144258011,-500.0,0.00011922,2]
[323627734,1714144258021,-165.60818366,0.00011922,2]
[323627735,1714144258030,-500.0,0.00011922,2]
[323627736,1714144258039,-677.3,0.00011922,2]
[323627737,1714144258049,-500.0,0.00011922,2]
[323627738,1714144258058,-500.0,0.00011922,2]
[323627739,1714144258068,-500.0,0.00011922,2]
[323627740,1714144258077,-500.0,0.00011922,2]
[323627741,1714144258086,-500.0,0.00011922,2]
[323627742,1714144258096,-500.0,0.00011922,2]
[323627743,1714144258105,-500.0,0.00011924,2]
[323627744,1714144258114,-500.0,0.00011925,2]
[323627745,1714144258125,-500.0,0.00011925,2]
[323627746,1714144258135,-500.0,0.00011925,2]
[323627747,1714144258147,-546.92,0.00011925,2]
[323627748,1714144258157,-500.0,0.00011925,2]
[323627749,1714144258167,-551.4640467,0.00011925,2]
[323627750,1714144258176,-502.9681844,0.00011925,2]
[323627751,1714144258186,-500.0,0.00011925,2]
[323627752,1714144258201,-577.06402248,0.00011925,2]
[323627753,1714144258212,-806.39,0.00011925,2]
[323627754,1714144258222,-486.75455373,0.00011925,2]
[323627755,1714144258233,-500.0,0.00011925,2]
[323627756,1714144258244,-500.0,0.00011925,2]
[323627757,1714144258255,-500.0,0.00011925,2]
[323627758,1714144258267,-500.0,0.00011925,2]
[323627759,1714144258277,-500.0,0.00011925,2]
[323627760,1714144258287,-500.0,0.00011925,2]
[323627761,1714144258298,-590.07,0.00011925,2]
[323627762,1714144258309,-500.0,0.00011925,2]
[323627763,1714144258318,-500.0,0.00011925,2]
[323627764,1714144258329,-918.04,0.00011925,2]
[323627765,1714144258339,-500.0,0.00011925,2]
[323627766,1714144258349,-500.0,0.00011925,2]
[323627767,1714144258359,-525.70412937,0.00011925,2]
[323627768,1714144258369,-500.0,0.00011925,2]
[323627769,1714144258379,-500.0,0.00011925,2]
[323627770,1714144258389,-500.0,0.00011925,2]
[323627771,1714144258399,-500.0,0.00011925,2]
[323627772,1714144258409,-670.75,0.00011925,2]
[323627773,1714144258419,-500.0,0.00011925,2]
[323627774,1714144258430,-500.0,0.00011925,2]
[323627775,1714144258441,-500.0,0.00011925,2]
[323627776,1714144258452,-500.0,0.00011925,2]
[323627777,1714144258464,-500.0,0.00011925,2]